Workbook

Sheet List1
B1: Návrh - Rozpočtový výhled obce Nezvěstice pro období 2017 – 2018
C4: 2017 | D4: 2018
B5: Třída 1 - Daňové příjmy | C5: 17500000 | D5: 17500000
B6: Třída 2 - Nedaňové příjmy | C6: 3500000 | D6: 3500000
B7: Třída 3 - Kapitálové příjmy | C7: 0 | D7: 0
B8: Třída 4 - Přijaté dotace | C8: 18500000 | D8: 0
B9: z toho :
B10: Přístavba ZŠ a MŠ | C10: 18000000 | D10: 0
B11: Opravy místních komunikací | C11: 500000 | D11: 0
B12: Příjmy celkem | C12: =SUM(C5:C8) -> 39500000 | D12: =SUM(D5:D8) -> 21000000
B14: Třída 5 - Běžné výdaje | C14: 19500000 | D14: 20500000
B15: z toho :
B16: běžné výdaje | C16: 18000000 | D16: 19500000
B17: oprava místních komunikací | C17: 1500000 | D17: 1000000
B18: Třída 6 - Kapitálové výdaje | C18: =SUM(C20:C21:C22) -> 21000000 | D18: =SUM(D20:D21:D22) -> 3000000
B19: z toho :
B20: úvěr | C20: 1000000 | D20: 1000000
B21: Přístavba ZŠ a MŠ | C21: 20000000 | D21: 0
B22: Oprava komunikace v Olešné, přechody na I/19 | C22: 0 | D22: 2000000
B23: Výdaje celkem | C23: =C14+C18 -> 40500000 | D23: =D14+D18 -> 23500000
B25: Financování (vl. Zdroje+ úvěr ) : | C25: =C23-C12 -> 1000000 | D25: =D23-D12 -> 2500000
B27: Stav fin. Prostředků k 31.5.2016
B28: Česká spořitelna | C28: 3324019.03
B29: ČSOB – b.ú. | C29: 5202269.41
B30: ČSOB – spořící účet | C30: 6567931.22
B31: Poštovní spořitelna | C31: 306692.17
B32: ČNB | C32: 2432567.4
B33: Podílové listy | C33: 0
B34: Cenné papíry | C34: 0
B35: Celkem | C35: =SUM(C28:C34) -> 17833479.23

Sheet List2
A1: Rozpočtový výhled obce Nezvěstice pro období 2014 – 2015
B4: 2014 | C4: 2015
A5: Třída 1 - Daňové příjmy | B5: 16000000 | C5: 16000000
A6: Třída 2 - Nedaňové příjmy | B6: 3000000 | C6: 3500000
A7: Třída 3 - Kapitálové příjmy | B7: 100000 | C7: 100000
A8: Třída 4 - Přijaté dotace | B8: 33000000 | C8: 20000000
A9: z toho :
A10: Kanalizace | B10: 24000000 | C10: 20000000
A11: Stadion | B11: 9000000
A12: Příjmy celkem | B12: =SUM(B5:B8) -> 52100000 | C12: =SUM(C5:C8) -> 39600000
A14: Třída 5 - Běžné výdaje | B14: 29000000 | C14: 27500000
A15: z toho :
A16: běžné výdaje | B16: 24000000 | C16: 24000000
A17: oprava koupaliště | B17: 5000000
A18: oprava cesty v Olešné | C18: 3500000
A19: Třída 6 - Kapitálové výdaje | B19: 34500000 | C19: 20000000
A20: z toho :
A21: Kanalizace | B21: 24000000 | C21: 20000000
A22: Stadion | B22: 10500000
A23: Výdaje celkem | B23: =B14+B19 -> 63500000 | C23: =C14+C19 -> 47500000
A25: Financování ( úvěr ) : | B25: =B23-B12 -> 11400000 | C25: =C23-C12 -> 7900000
A28: Rozpočtový výhled byl schválen na 11. jednání Zastupitelstva obce dne 18. 3.2013
A47: Stav fin. Prostředků | C47: 2013 | D47: 2014 | E47: 2015
A48: Česká spořitelna | C48: 5000000 | D48: 1500000 | E48: 1500000
A49: ČSOB – b.ú. | C49: 10000 | D49: 11000 | E49: 11500
A50: ČSOB – spořící účet | C50: 21000000 | D50: 11000000 | E50: 4000000
A51: Poštovní spořitelna | C51: 200000 | D51: 200000 | E51: 200000
A52: ČNB | C52: 20000 | D52: 20000 | E52: 20000
A53: Podílové listy | C53: 3265000 | D53: 3270000 | E53: 3280000
A54: Cenné papíry | C54: 285000 | D54: 290000 | E54: 295000
A55: Celkem | C55: =SUM(C48:C54) -> 29780000 | D55: =SUM(D48:D54) -> 16291000 | E55: =SUM(E48:E54) -> 9306500

Sheet List3
A1: Rozpočtový výhled obce Nezvěstice pro období 2014 – 2015
B4: 2014 | C4: 2015
A5: Třída 1 - Daňové příjmy | B5: 16000000 | C5: 16000000
A6: Třída 2 - Nedaňové příjmy | B6: 3000000 | C6: 3500000
A7: Třída 3 - Kapitálové příjmy | B7: 100000 | C7: 100000
A8: Třída 4 - Přijaté dotace | B8: 33000000 | C8: 20000000
A9: z toho :
A10: Kanalizace | B10: 24000000 | C10: 20000000
A11: Stadion | B11: 9000000
A12: Příjmy celkem | B12: =SUM(B5:B8) -> 52100000 | C12: =SUM(C5:C8) -> 39600000
A14: Třída 5 - Běžné výdaje | B14: 29000000 | C14: 27500000
A15: z toho :
A16: běžné výdaje | B16: 24000000 | C16: 24000000
A17: oprava koupaliště | B17: 5000000
A18: oprava cesty v Olešné | C18: 3500000
A19: Třída 6 - Kapitálové výdaje | B19: 34500000 | C19: 20000000
A20: z toho :
A21: Kanalizace | B21: 24000000 | C21: 20000000
A22: Stadion | B22: 10500000
A23: Výdaje celkem | B23: =B14+B19 -> 63500000 | C23: =C14+C19 -> 47500000
A25: Financování ( úvěr ) : | B25: =B23-B12 -> 11400000 | C25: =C23-C12 -> 7900000
A27: Stav fin. Prostředků k 11.3.2013
A28: Česká spořitelna | C28: 6271864.92
A29: ČSOB – b.ú. | C29: 5252059.26
A30: ČSOB – spořící účet | C30: 18644176.2
A31: Poštovní spořitelna | C31: 1174065.96
A32: ČNB | C32: 0
A33: Podílové listy | C33: 3265000
A34: Cenné papíry | C34: 285000
A35: Celkem | C35: =SUM(C28:C34) -> 34892166.34
